Cogmind - Beta 16.1 @@@ ROGUE MODE // 2026.04.01 @ 00:40:09 Player: KURIIRI Result: Self-destructed Performance ------------- Evolutions (4) 2000 Regions Visited (10) 2000 Robots Destroyed (174) 870 Value Destroyed (5114) 5114 Prototype IDs (15) 300 Alien Tech Used (0) 0 Bonus (800) 800 TOTAL SCORE: 11084 Bonus ------- Registered with UFD 300 Met Optimus in HQ 500 Cogmind --------- Core Integrity 345/850 Matter 295/300 Energy 99/100 System Corruption 22% Temperature Cool (8) Movement Core (50) Location -6/Waste Parts ------- > --- POWER (1) -------- (None) > --- PROPULSION (4) --- (None) > --- UTILITY (8) ------ (None) > --- WEAPON (2) ------- (None) > --- INVENTORY (5) ---- Gravmag System Improved Gravmag System Power Amplifier Plasma Rifle Long-range Missile Launcher Peak State ------------ > --- POWER ------------ Nuclear Core > --- PROPULSION ------- Advanced Treads Advanced Treads Advanced Treads Armored Wheel > --- UTILITY ---------- Advanced Heat Sink Large Storage Unit Advanced Signal Interpreter Advanced Terrain Scanner Hardened Medium Armor Plating Hacking Suite System Shield > --- WEAPON ----------- Heavy Plasma Cannon Cooled Plasma Cannon > --- INVENTORY -------- Gravmag System Power Amplifier Improved Cooling System Gatling Laser Plasma Rifle Plasma Rifle Plasma Cannon Missile Launcher Shock Maul [Rating: 54] Favorites ----------- Power Light Angular Momentum Engine Engine Light Angular Momentum Engine Power Core Nuclear Core Propulsion Advanced Treads Treads Advanced Treads Leg Aluminum Leg Wheel Armored Wheel Hover Unit Aerolev Unit Utility High-capacity Storage Unit Device Seismic Detector Storage High-capacity Storage Unit Processor Advanced Signal Interpreter Hackware Hacking Suite Protection Improved Light Armor Plating Weapon Advanced Beam Rifle Energy Gun Advanced Beam Rifle Energy Cannon Beam Cannon Ballistic Gun Assault Rifle Ballistic Cannon Improved Light Cannon Launcher Grenade Launcher Special Weapon Plasma Cutter Impact Weapon Shock Maul Build | -11 -10 -10 -9 -9 -8 -8 -8 -8 -6 -6 ------- Run | Yrd Mat Min Mat Min Mat Sto Rec Scr Fac Was Slots Evolved 8 | . . . 2 . 2 . . . 4 . Power . | . . . . . . . . . . . Propulsion 2 | . . . . . 1 . . . 1 . Utility 6 | . . . 2 . 1 . . . 3 . Weapon . | . . . . . . . . . . . Parts Attached 96 | 3 16 4 12 2 11 13 4 8 21 2 Power 12 | . 2 2 . 1 2 1 1 . 2 1 Engine 8 | . 2 2 . 1 1 1 . . . 1 Core 4 | . . . . . 1 . 1 . 2 . Reactor . | . . . . . . . . . . . Propulsion 22 | 2 4 1 2 . 2 6 . 4 1 . Treads 14 | 2 2 1 . . 2 4 . 3 . . Leg . | . . . . . . . . . . . Wheel 7 | . 2 . 2 . . 1 . 1 1 . Hover 1 | . . . . . . 1 . . . . Flight . | . . . . . . . . . . . Utility 28 | 1 2 . 6 . 2 3 . 2 11 1 Device 12 | 1 1 . 2 . . . . . 7 1 Storage 2 | . 1 . . . . . . 1 . . Processor 1 | . . . . . . . . . 1 . Hackware 3 | . . . . . 1 . . 1 1 . Protection 10 | . . . 4 . 1 3 . . 2 . Artifact . | . . . . . . . . . . . Weapon 34 | . 8 1 4 1 5 3 3 2 7 . Energy Gun 11 | . 1 . 3 1 1 1 . 2 2 . Energy Cannon 11 | . 3 . . . 1 . 3 . 4 . Ballistic Gun 2 | . 1 . 1 . . . . . . . Ballistic Cannon 3 | . 2 1 . . . . . . . . Launcher 4 | . 1 . . . 2 . . . 1 . Special Weapon 1 | . . . . . . 1 . . . . Impact Weapon 2 | . . . . . 1 1 . . . . Slashing Weapon . | . . . . . . . . . . . Piercing Weapon . | . . . . . . . . . . . Special Melee Weapon . | . . . . . . . . . . . Unidentified Prototypes 11 | . . . 3 . 2 5 . . 1 . Parts Lost 29 | . 2 6 1 . 1 1 . . 10 8 Power 4 | . 1 1 . . . . . . 1 1 Propulsion 12 | . 1 3 1 . 1 1 . . 2 3 Utility 12 | . . 1 . . . . . . 7 4 Weapon 1 | . . 1 . . . . . . . . Highest Loss Streak 7 | . 1 5 1 . 1 1 . . 7 6 To Critical Strikes . | . . . . . . . . . . . Average Backups 16 | 6 9 13 17 19 19 19 19 18 12 14 Power 1 | 1 . . 1 2 1 1 1 1 . . Propulsion 2 | 4 2 2 1 1 . 2 4 3 1 3 Utility 5 | . . 2 5 7 7 8 8 7 4 3 Weapon 6 | 1 4 7 7 8 8 6 5 4 5 7 Tool/Special . | . . . . . . . . . . . Unused Backups 30 | . 4 . 3 . 3 5 1 3 5 6 Power 3 | . 2 . . . . . . . 1 . Propulsion 4 | . . . . . . . . 1 . 3 Utility 11 | . 2 . . . . 1 1 2 3 2 Weapon 12 | . . . 3 . 3 4 . . 1 1 Tool/Special . | . . . . . . . . . . . Average Slot Usage (%) 96 | . 96 89 93 100 99 99 100 99 94 84 Engine 6 | . 12 11 11 11 5 6 6 . . 2 Core 2 | . . . . . 3 2 2 9 5 2 Treads 17 | . 18 20 8 . 19 25 27 24 15 8 Wheel 7 | . 8 6 13 22 6 . . 3 10 8 Device 16 | . 13 6 18 22 18 18 18 15 17 20 Storage 9 | . 14 14 11 11 9 9 9 9 6 6 Hackware 6 | . . . . . 8 9 9 10 17 13 Protection 6 | . . . 9 11 9 9 9 9 5 . Energy Gun 11 | . 3 . 14 22 17 16 11 12 7 . Energy Cannon 4 | . 17 . 3 . . . 6 5 4 12 Ballistic Cannon 2 | . 4 21 3 . . . . . . . Peak Build Rating 54 | 9 11 12 25 25 30 39 34 37 54 54 Average Rating 28 | 7 8 9 21 23 28 31 33 34 49 49 On Entrance 24 | 6 9 11 12 25 23 27 34 34 37 53 Avg Prop Armor Cover (%) 12 | . 11 10 8 . 7 6 . 13 14 11 Naked Turns . | . . . . . . . . . . . Heaviest Build 68 | 12 54 56 65 58 62 63 68 66 53 51 Greatest Support 66 | 40 40 40 40 22 63 66 66 66 24 24 Greatest Overweight (x) 16 | . 16 5 6 2 4 4 1 3 4 4 Average Overweight (x) 1 | . 3 3 3 2 . . . . 1 3 Largest Inventory Capacity 20 | 8 20 20 20 20 20 20 20 20 15 15 Average Capacity 18 | 8 16 20 20 20 20 20 20 18 15 14 Most Carried 20 | 6 16 16 20 20 20 20 20 20 15 15 Average Carried 16 | 5 9 13 17 19 19 19 19 18 12 14 Final Capacity 20 | 8 20 20 20 20 20 20 20 15 15 5 Final Carried 20 | 4 16 12 19 20 20 20 20 15 13 5 Class Distribution -------------------- 80% | Mutant 17% | Hacker-Mutant Dominant Class ---------------- Mutant | -10/Materials Mutant | -10/Mines Mutant | -9/Materials Mutant | -9/Mines Mutant | -8/Materials Mutant | -8/Storage Mutant | -8/Recycling Mutant | -8/Scraptown Hacker-Mutant | -6/Factory Hacker-Skirmisher | -6/Waste Resources | -11 -10 -10 -9 -9 -8 -8 -8 -8 -6 -6 ----------- Run | Yrd Mat Min Mat Min Mat Sto Rec Scr Fac Was Matter Collected 2554 | 210 317 268 352 20 341 310 143 80 464 49 Remotely . | . . . . . . . . . . . Salvage Created 6658 | 70 782 75 1337 157 1333 729 527 . 1320 328 Parts 299 | 5 49 1 74 7 60 40 22 . 38 3 Haulers Intercepted 15 | . 2 . 5 . 5 3 . . . . Recyclers Shooed 13 | . 1 . 7 . 2 1 1 . 1 . Parts Field Recycled . | . . . . . . . . . . . Retrieved Matter . | . . . . . . . . . . . Parts Self-Destructed . | . . . . . . . . . . . Prevented . | . . . . . . . . . . . Parts Restored . | . . . . . . . . . . . Kills | -11 -10 -10 -9 -9 -8 -8 -8 -8 -6 -6 ------- Run | Yrd Mat Min Mat Min Mat Sto Rec Scr Fac Was Combat Hostiles Destroyed 124 | . 15 15 22 5 20 11 8 . 27 1 Melee 1 | . . . . . . . . . 1 . Guns 55 | . 4 . 18 5 13 2 2 . 11 . Cannons 25 | . 6 6 4 . . . 3 . 5 1 AOE 35 | . 5 9 . . 6 7 3 . 5 . Classes Destroyed 16 | 2 7 2 1 . 1 . 2 . . 1 Worker 5 | . 1 . 1 . 2 1 . . . . Builder 11 | . 2 . 2 1 2 1 2 . 1 . Tunneler 3 | 1 . . 2 . . . . . . . Hauler 15 | . 2 . 5 . 5 3 . . . . Recycler 7 | 1 1 . 1 . . 2 2 . . . Operator 6 | . 1 . 1 . 1 1 . . 2 . Watcher 17 | . 3 . 5 . 3 2 . . 4 . Swarmer 21 | . 3 . 7 3 . 4 . . 4 . Grunt 47 | . 12 . 8 2 11 1 1 . 12 . Duelist 5 | . . . . . 2 1 . . 2 . Sentry 27 | . . . 7 . 7 5 5 . 3 . Demolisher 1 | . . 1 . . . . . . . . Hunter 4 | . . . . . . . 1 . 3 . Programmer 4 | . . . . . . . 1 . 3 . Compactor 1 | . . . . . . . . . . 1 Assembled 14 | . . 14 . . . . . . . . Best Kill Streak 12 | 2 6 10 9 3 5 12 7 . 5 1 Combat Bots Only 10 | . 5 10 4 3 5 8 4 . 5 1 Max Kills in Single Turn 5 | 1 3 2 2 1 2 5 2 . 2 1 Gunslinging 1 | . . . 1 . . . . . . . Exploded 3 | . 3 2 . . 2 3 2 . 2 . Melee 1 | . . . . . . . . . 1 . Uniques/NPCs Destroyed . | . . . . . . . . . . . Combat | -11 -10 -10 -9 -9 -8 -8 -8 -8 -6 -6 -------- Run | Yrd Mat Min Mat Min Mat Sto Rec Scr Fac Was Hostile Shots Fired 627 | . 49 51 78 28 61 31 36 . 285 8 Missed 173 | . 10 12 20 10 17 6 10 . 88 . Hits 454 | . 39 39 58 18 44 25 26 . 197 8 Melee 19 | . . 8 . . . . . . 3 8 Projectile 435 | . 39 31 58 18 44 25 26 . 194 . AOE 8 | . . 8 . . . . . . . . Critical Strikes 17 | . 1 . 1 . 2 . 4 . 5 4 Damage Taken 6778 | . 580 993 656 164 764 331 405 . 2509 376 Core 959 | . 36 187 58 39 66 39 29 . 312 193 Absorbed by Shields 125 | . . . . . . . . . 125 . Regen/Repaired (Parts) 839 | . . . 76 . 284 129 . . 350 . Core Remaining (%) 65 | 100 . 10 . 75 . . . 75 . . Volleys Fired 447 | 5 57 35 86 18 79 29 21 . 101 16 Largest 2 | 2 2 2 2 2 2 2 2 . 2 2 Hottest 165 | 90 120 66 122 122 122 122 136 . 165 165 Shots Fired 825 | 10 111 52 169 36 148 55 39 . 178 27 Gun 550 | 10 57 . 126 36 139 52 26 . 104 . Cannon 235 | . 52 38 43 . . . 10 . 65 27 Launcher 40 | . 2 14 . . 9 3 3 . 9 . Special . | . . . . . . . . . . . Kinetic 90 | . 29 38 23 . . . . . . . Thermal 695 | 10 80 . 146 36 139 52 36 . 169 27 Explosive 40 | . 2 14 . . 9 3 3 . 9 . Electromagnetic . | . . . . . . . . . . . Robot Hit Streak 25 | 3 10 4 10 10 14 6 21 . 25 7 Robot Miss Streak 8 | 3 5 2 3 3 4 3 1 . 8 2 Penetration Max . | . . . . . . . . . . . Secondary Targets 7 | . 2 . 1 1 . . . . 3 . Max Gunslinging Chain 1 | . 1 . 1 1 . . . . 1 . Shots Hit Robots 514 | 5 70 21 104 21 90 36 30 . 118 19 Core Hits 276 | 3 35 24 42 7 51 28 21 . 61 4 Critical Kills 1 | . . . . . . . . . 1 . Critical Parts Destroyed 7 | . 1 . . . . 2 . . 4 . Critical Strikes 49 | . 3 1 10 4 6 8 6 . 11 . Burn 38 | . 2 . 10 4 6 6 6 . 4 . Meltdown 1 | . . . . . . . . . 1 . Destroy 1 | . 1 . . . . . . . . . Blast 1 | . . 1 . . . . . . . . Smash 8 | . . . . . . 2 . . 6 . Melee Attacks 38 | . . . . . 4 8 . . 26 . Impact 38 | . . . . . 4 8 . . 26 . Slashing . | . . . . . . . . . . . Piercing . | . . . . . . . . . . . Sneak Attacks 1 | . . . . . 1 . . . . . Combat Hostiles . | . . . . . . . . . . . Follow-up Attacks . | . . . . . . . . . . . Damage Inflicted 15447 | 59 1359 1004 2242 420 2704 1399 1143 . 4416 701 Guns 7343 | 56 562 . 1728 420 1850 618 377 . 1732 . Cannons 3466 | . 494 447 514 . . . 276 . 1034 701 Explosions 3816 | . 255 557 . . 785 596 482 . 1141 . Melee 763 | . . . . . 69 185 . . 509 . Ramming 59 | 3 48 . . . . . 8 . . . Kinetic 1044 | . 301 447 296 . . . . . . . Thermal 9765 | 56 755 . 1946 420 1850 618 653 . 2766 701 Explosive 3816 | . 255 557 . . 785 596 482 . 1141 . Electromagnetic . | . . . . . . . . . . . Impact 763 | . . . . . 69 185 . . 509 . Slashing . | . . . . . . . . . . . Piercing . | . . . . . . . . . . . Highest Corruption 22 | . . . . . . . . . 7 22 Average Corruption 3 | . . . . . . . . . 2 11 Corruption Purged . | . . . . . . . . . . . Corruption Blocked . | . . . . . . . . . . . Effects 21 | . . . . . . . . . 12 9 Message Errors 6 | . . . . . . . . . 4 2 Matter Fused 2 | . . . . . . . . . 2 . Heat Flow Errors 2 | . . . . . . . . . . 2 Energy Discharges 1 | . . . . . . . . . 1 . Data Loss (minor) 1 | . . . . . . . . . 1 . Data Loss (major) 1 | . . . . . . . . . 1 . Misfires 1 | . . . . . . . . . 1 . Alerts 2 | . . . . . . . . . 2 . Misdirections 2 | . . . . . . . . . . 2 Weapon Failures 3 | . . . . . . . . . . 3 Overload Shots . | . . . . . . . . . . . Overflow Damage 401 | . 30 9 12 . 32 97 23 . 198 . Projectiles 29 | . . 3 12 . . . 14 . . . Explosions 65 | . 30 6 . . 3 4 9 . 13 . Melee 307 | . . . . . 29 93 . . 185 . Knockbacks 11 | . . 6 3 . . . . . 2 . Impact 2 | . . . . . . . . . 2 . Kinetic 9 | . . 6 3 . . . . . . . Secondary . | . . . . . . . . . . . Self-Inflicted Damage 108 | . 63 21 . . 24 . . . . . Shots 3 | . 1 1 . . 1 . . . . . Rammed 6 | 1 3 . . . . . 2 . . . Targets Rammed 6 | 1 3 . . . . . 2 . . . Kicked . | . . . . . . . . . . . Crushed . | . . . . . . . . . . . Highest Temperature 453 | 150 228 10 297 210 309 120 144 . 453 312 Average Temperature 69 | 75 68 10 74 72 68 27 51 . 82 73 Received Heat Transfer 1718 | . 237 29 192 30 387 99 162 . 573 9 Effects 3 | . . . . . 1 . . . 2 . Shutdowns 1 | . . . . . . . . . 1 . Energy Bleed 1 | . . . . . 1 . . . . . Damage (minor) 1 | . . . . . . . . . 1 . Siege Activations . | . . . . . . . . . . . Martial Activations . | . . . . . . . . . . . Shielding Activations . | . . . . . . . . . . . Robots Disrupted . | . . . . . . . . . . . Combat Hostiles . | . . . . . . . . . . . Robots Corrupted 5 | . . . . . . 2 . . 3 . Combat Hostiles 5 | . . . . . . 2 . . 3 . Parts Fried 9 | . . . . . 3 2 . . 4 . Impact Corruptions 8 | . . . . . 1 2 . . 5 . Robots Melted 3 | . . . . . 1 . . . 2 . Combat Hostiles 3 | . . . . . 1 . . . 2 . Parts Melted 54 | . 4 . 12 . 10 4 3 . 21 . Heat Transferred 20941 | 149 1924 . 4255 1036 3811 1554 1443 . 5701 1068 Parts Sabotaged . | . . . . . . . . . . . Parts Stolen . | . . . . . . . . . . . Parts Stripped . | . . . . . . . . . . . Power Chain Reactions . | . . . . . . . . . . . Alert | -11 -10 -10 -9 -9 -8 -8 -8 -8 -6 -6 ------- Run | Yrd Mat Min Mat Min Mat Sto Rec Scr Fac Was Maximum Alert Level 1 | . 1 . 1 . 1 1 . . 1 . Low Security (%) 86 | 100 84 100 68 100 93 93 100 . 81 100 Level 1 13 | . 15 . 31 . 6 6 . . 18 . Level 2 . | . . . . . . . . . . . Level 3 . | . . . . . . . . . . . Level 4 . | . . . . . . . . . . . Level 5 . | . . . . . . . . . . . High Security . | . . . . . . . . . . . Max Security . | . . . . . . . . . . . Peak Influence 359 | 10 252 55 359 160 309 225 115 . 276 92 Initial 130 | . . 55 . 130 31 . . . . 91 Average 82 | 2 90 6 121 124 96 36 56 . 80 52 Influence Increases 4117 | 10 572 75 809 199 806 443 385 . 817 1 Destroy 0b10 Robot/C 2180 | . 300 20 440 100 400 220 160 . 540 . Destroy 0b10 Robot/NC 325 | 10 50 . 85 5 65 50 25 . 35 . Destroy Leader 574 | . 60 . 140 20 136 80 . . 138 . Successful Hack 170 | . 14 . 50 . 32 22 5 . 47 . Select Force Hacks 330 | . 60 . 60 . 30 . 180 . . . Disable Machine 210 | . 45 . 30 45 45 45 . . . . Destroy Structure 253 | . 13 55 4 14 68 26 15 . 57 1 Lose Combat Pursuer 75 | . 30 . . 15 30 . . . . . Influence Decreases 4117 | 10 430 217 474 451 887 445 342 43 557 261 Entered New Map 558 | . . 87 . 205 52 2 . 43 . 169 Time Decay 2927 | 10 410 120 464 246 525 283 342 . 477 50 Lost Part 172 | . 20 10 10 . 10 10 . . 70 42 Lost Ally 10 | . . . . . . . . . 10 . Purge Threat 450 | . . . . . 300 150 . . . . Squads Dispatched 20 | . 2 . 3 . 5 1 . . 9 . Investigation 8 | . 2 . 2 . 1 . . . 3 . Extermination 3 | . . . . . . . . . 3 . Reinforcement 8 | . . . 1 . 3 1 . . 3 . Assault . | . . . . . . . . . . . Garrison 1 | . . . . . 1 . . . . . Intercept . | . . . . . . . . . . . Searches Triggered . | . . . . . . . . . . . Construction Impeded 3 | . . . . . 1 . . . 2 . Haulers Reinforced . | . . . . . . . . . . . Active Scanning Responses . | . . . . . . . . . . . Cargo Convoy Interrupts . | . . . . . . . . . . . Stealth | -11 -10 -10 -9 -9 -8 -8 -8 -8 -6 -6 --------- Run | Yrd Mat Min Mat Min Mat Sto Rec Scr Fac Was Distress Signals 8 | . 1 . 2 . 1 1 . . 3 . Communications Jammed . | . . . . . . . . . . . Distress Signals . | . . . . . . . . . . . Times Spotted 183 | . 24 19 29 6 31 16 6 . 48 4 Peak Tracking Total 9 | . 6 8 4 3 4 9 4 . 5 2 Tactical Retreats 6 | . 1 2 . 1 2 . . . . . Traps | -11 -10 -10 -9 -9 -8 -8 -8 -8 -6 -6 ------- Run | Yrd Mat Min Mat Min Mat Sto Rec Scr Fac Was Traps Triggered 6 | . 5 . . . . . . . 1 . Indirectly . | . . . . . . . . . . . Trap Hack Attempts . | . . . . . . . . . . . Triggered . | . . . . . . . . . . . Disarmed . | . . . . . . . . . . . Reprogrammed . | . . . . . . . . . . . Reused . | . . . . . . . . . . . Traps Extracted . | . . . . . . . . . . . Installed . | . . . . . . . . . . . Triggered . | . . . . . . . . . . . Machines | -11 -10 -10 -9 -9 -8 -8 -8 -8 -6 -6 ---------- Run | Yrd Mat Min Mat Min Mat Sto Rec Scr Fac Was Machines Disabled 14 | . 3 . 2 3 3 3 . . . . Max in Single Turn 2 | . 1 . 1 2 1 1 . . . . Garrison Access 2 | . . . . . . 1 . . 1 . Machines Repaired . | . . . . . . . . . . . Machines Dismantled 1 | . . . . . . 1 . . . . Machines Sabotaged . | . . . . . . . . . . . Overloaded Fab Kills . | . . . . . . . . . . . Hacking | -11 -10 -10 -9 -9 -8 -8 -8 -8 -6 -6 --------- Run | Yrd Mat Min Mat Min Mat Sto Rec Scr Fac Was Machines Accessed 65 | . 9 . 13 . 12 10 10 1 10 . Terminals 39 | . 7 . 9 . 8 8 4 . 3 . Fabricators 2 | . . . . . . . . . 2 . Repair Stations 5 | . . . 1 . 2 1 . . 1 . Recycling Units 13 | . 2 . 2 . 1 . 6 . 2 . Scanalyzers 3 | . . . 1 . 1 . . . 1 . Garrison Access 2 | . . . . . . 1 . . 1 . Total Hacks 184 | . 25 . 36 . 43 23 22 3 32 . Successful 122 | . 10 . 26 . 34 18 13 3 18 . Failed 59 | . 15 . 9 . 9 5 8 . 13 . Catastrophic 6 | . 1 . . . 1 . 1 . 3 . Database Lockouts 3 | . . . 1 . . . 1 . 1 . Manual 134 | . 25 . 28 . 30 17 15 . 19 . Terminals 127 | . 21 . 28 . 33 20 12 . 13 . Fabricators 5 | . . . . . . . . . 5 . Repair Stations 17 | . . . 3 . 6 2 . . 6 . Recycling Units 22 | . 4 . 3 . 1 . 10 . 4 . Scanalyzers 7 | . . . 2 . 3 . . . 2 . Garrison Access 3 | . . . . . . 1 . . 2 . Terminal Hacks 36 | . 2 . 9 . 11 6 4 3 1 . Record 3 | . . . . . . . . 3 . . Part Schematic 2 | . . . . . . . 2 . . . Robot Analysis 7 | . 2 . 1 . 2 1 1 . . . Prototype ID Bank 3 | . . . . . 2 1 . . . . Open Door 3 | . . . . . . 3 . . . . Branch Access Points 2 | . . . 1 . . . 1 . . . Terminal Index 1 | . . . 1 . . . . . . . Recycling Unit Index 2 | . . . 2 . . . . . . . Scanalyzer Index 1 | . . . . . 1 . . . . . Alert Level 3 | . . . 1 . 1 . . . 1 . Unreport Threat 3 | . . . . . 2 1 . . . . Locate Traps 3 | . . . 2 . 1 . . . . . Recall Investigation 1 | . . . . . 1 . . . . . Hauler Manifests 1 | . . . 1 . . . . . . . Zone Layout 1 | . . . . . 1 . . . . . Fabricator Hacks 1 | . . . . . . . . . 1 . Network Status 1 | . . . . . . . . . 1 . Repair Station Hacks 14 | . . . 2 . 6 2 . . 4 . Scan Component 7 | . . . 1 . 3 1 . . 2 . Repair 7 | . . . 1 . 3 1 . . 2 . Recycling Unit Hacks 1 | . . . . . . . 1 . . . Retrieve Components 1 | . . . . . . . 1 . . . Scanalyzer 6 | . . . 2 . 3 . . . 1 . Insert Component 1 | . . . 1 . . . . . . . Analyze 1 | . . . 1 . . . . . . . Retrieve Study 4 | . . . . . 3 . . . 1 . Garrison Access Hacks 2 | . . . . . . 1 . . 1 . Seal Access 2 | . . . . . . 1 . . 1 . Unauthorized Hacks 62 | . 8 . 13 . 14 9 8 . 10 . Terminals 46 | . 6 . 11 . 13 9 2 . 5 . Track 4 | . . . 2 . 2 . . . . . Assimilate 1 | . . . . . 1 . . . . . Botnet 14 | . 1 . 3 . 4 3 2 . 1 . Disrupt 1 | . . . . . . 1 . . . . Operators 3 | . . . 1 . 1 . . . 1 . Skim 23 | . 5 . 5 . 5 5 . . 3 . Fabricators 2 | . . . . . . . . . 2 . Report 1 | . . . . . . . . . 1 . Liberate 1 | . . . . . . . . . 1 . Repair Stations 1 | . . . . . . . . . 1 . Patch 1 | . . . . . . . . . 1 . Recycling Units 13 | . 2 . 2 . 1 . 6 . 2 . Tunnel 11 | . 2 . 2 . 1 . 6 . . . Fedlink 2 | . . . . . . . . . 2 . Scanalyzers . | . . . . . . . . . . . Garrison Access . | . . . . . . . . . . . Data Cores Recovered 1 | . . . . . . . . . 1 . Used . | . . . . . . . . . . . Hacking Detections 40 | . 7 . 9 . 9 3 4 . 8 . Full Trace Events 4 | . . . . . 1 . 3 . . . Feedback Events . | . . . . . . . . . . . Feedback Blocked . | . . . . . . . . . . . Robot Schematics Acquired . | . . . . . . . . . . . Robots Built . | . . . . . . . . . . . Authchips . | . . . . . . . . . . . Time . | . . . . . . . . . . . Total Robot Build Rating . | . . . . . . . . . . . Part Schematics Acquired 3 | . . . 1 . . . 2 . . . Parts Built . | . . . . . . . . . . . Authchips . | . . . . . . . . . . . Time . | . . . . . . . . . . . Total Part Build Rating . | . . . . . . . . . . . Part Studies Acquired 4 | . . . . . 3 . . . 1 . Parts Repaired 7 | . . . 1 . 3 1 . . 2 . Time 263 | . . . 60 . 136 32 . . 35 . Parts Recycled . | . . . . . . . . . . . Recycled Matter . | . . . . . . . . . . . Retrieved Matter . | . . . . . . . . . . . Retrieved Components 1 | . . . . . . . 1 . . . Parts Scanalyzed 1 | . . . 1 . . . . . . . Part Schematics Acquired 1 | . . . 1 . . . . . . . Parts Damaged . | . . . . . . . . . . . Bothacking | -11 -10 -10 -9 -9 -8 -8 -8 -8 -6 -6 ------------ Run | Yrd Mat Min Mat Min Mat Sto Rec Scr Fac Was Used RIF Installer . | . . . . . . . . . . . Robots Hacked . | . . . . . . . . . . . Non-combat . | . . . . . . . . . . . Combat . | . . . . . . . . . . . Robot Hacks Applied . | . . . . . . . . . . . Relay Couplers Released . | . . . . . . . . . . . Fabnet Peak Effective % . | . . . . . . . . . . . Robots Rewired 1 | . . . . . . . 1 . . . Allies Hacked . | . . . . . . . . . . . Hacks Repelled . | . . . . . . . . . . . Allies | -11 -10 -10 -9 -9 -8 -8 -8 -8 -6 -6 -------- Run | Yrd Mat Min Mat Min Mat Sto Rec Scr Fac Was Total Allies 4 | . . 3 . . . . 1 . . . Largest Group 3 | . . 3 . . . . 1 1 1 . Highest-Rated Group 40 | . . 40 . . . . 27 27 27 . Highest-Rated Ally 27 | . . 16 . . . . 27 27 27 . Initial UFD Resources 38 | . . . . . . . . . 24 38 Total Orders . | . . . . . . . . . . . Ally Attacks 7 | . . 7 . . . . . . . . Total Damage 79 | . . 79 . . . . . . . . Kills . | . . . . . . . . . . . Allies Corrupted . | . . . . . . . . . . . Allies Melted . | . . . . . . . . . . . Intel | -11 -10 -10 -9 -9 -8 -8 -8 -8 -6 -6 ------- Run | Yrd Mat Min Mat Min Mat Sto Rec Scr Fac Was Active Infowar (turns) 9812 | 20 366 . 1950 524 1712 1179 778 1308 1877 98 Sensors 172 | . . . . . . . . . 74 98 Terrain 1782 | 20 366 . . . . . . . 1348 48 Seismic 8560 | . . . 1950 524 1712 1179 778 1308 1109 . Robot Analysis Total 7 | . 2 . 1 . 2 1 1 . . . Derelict Logs Recovered 1 | . . . . 1 . . . . . . Drone Launches . | . . . . . . . . . . . Drone Recoveries . | . . . . . . . . . . . Exploration | -11 -10 -10 -9 -9 -8 -8 -8 -8 -6 -6 ------------- Run | Yrd Mat Min Mat Min Mat Sto Rec Scr Fac Was Turns Passed 11805 | 50 1635 638 1984 524 1712 1181 778 1308 1877 118 Spaces Moved 6459 | 25 862 292 983 399 810 487 471 936 1155 39 Core 4 | . 3 . . . . . . . . 1 Treads 2508 | 1 220 106 112 . 488 480 471 630 . . Legs 24 | 24 . . . . . . . . . . Wheels 3923 | . 639 186 871 399 322 7 . 306 1155 38 Hover . | . . . . . . . . . . . Flight . | . . . . . . . . . . . Fastest Speed 50 | 120 140 155 115 115 115 140 145 95 95 50 Average Speed 139 | 121 156 185 145 115 143 156 145 136 108 126 Slowest Speed 850 | 160 850 240 240 115 320 240 225 145 140 140 Overloaded Moves . | . . . . . . . . . . . Propulsion Burnouts . | . . . . . . . . . . . Robots Hopped . | . . . . . . . . . . . Potential Cave-ins . | . . . . . . . . . . . Cave-ins Triggered . | . . . . . . . . . . . Exploration Rate (%) 64 | 4 94 63 80 88 76 68 87 84 33 33 Regions Visited 10 Branch Regions 5 Pre-discovered Areas 19 | . 3 . 3 1 2 3 6 . 1 . Known Exits Taken 7 | . 1 1 1 1 1 . 1 1 . . Unknown Exits Taken 2 | 1 . . . . . 1 . . . . Scrap Searched 7 | . . 1 . 2 . . . 4 . . Spaces Dug 36 | . 5 7 . . 3 3 . . 18 . Terrain Destroyed 265 | . 8 62 . 16 74 31 14 . 59 1 Melee 15 | . . . . . 3 3 . . 9 . Projectile 16 | . . 1 . . 3 . . . 11 1 AOE 234 | . 8 61 . 16 68 28 14 . 39 . Terrain Rammed . | . . . . . . . . . . . Walls Destroyed . | . . . . . . . . . . . Machines Disabled . | . . . . . . . . . . . Actions | -11 -10 -10 -9 -9 -8 -8 -8 -8 -6 -6 --------- Run | Yrd Mat Min Mat Min Mat Sto Rec Scr Fac Was Total 8304 | 35 1028 335 1370 427 1201 797 527 969 1543 72 Wait 1021 | . 61 2 263 8 267 199 14 4 194 9 Move 6451 | 25 861 291 982 398 809 486 470 935 1155 39 Hop . | . . . . . . . . . . . Pick Up 70 | . 13 . 13 1 8 10 2 6 14 3 Fast Attach 48 | 1 12 . 7 . 6 5 3 3 10 1 Attach 30 | 2 4 5 1 . 1 2 1 1 11 2 Detach 7 | . 3 . . . 1 . 1 . 2 . Swap 87 | . 8 2 8 2 16 23 4 5 19 . Drop 76 | 2 6 . 10 . 10 17 5 15 11 . Fire 447 | 5 57 35 86 18 79 29 21 . 101 16 Melee 38 | . . . . . 4 8 . . 26 . Ram 5 | . 3 . . . . . . . . 2 Kick . | . . . . . . . . . . . Crush 2 | . . . . . . . 2 . . . Escape Stasis . | . . . . . . . . . . . Rewire 4 | . . . . . . . 4 . . . Trap . | . . . . . . . . . . . Miscellaneous 18 | . . . . . . 18 . . . . Route ------- -11/Scrapyard -10/Materials (discovered 6 exits: *Mat x3 / *Min x2 / Sub) -10/Mines (discovered 2 exits: *Mat x2) -9/Materials (discovered 3 exits: *Mat x2 / *Min) -9/Mines -8/Materials (discovered 3 exits: *Fac x2 / *Sto) -8/Storage (discovered 2 exits: *Fac / *Rec) -8/Recycling (discovered 2 exits: *Fac / *Scr) -8/Scraptown (discovered 2 exits: *Fac x2) -6/Factory (discovered 5 exits: Fac x3 / *Low x2) -6/Waste History --------- Turn | Location | Event 17 | -11/Scrapyard | Discovered new exit (range 3) 51 | -11/Scrapyard | Entered Materials 300 | -10/Materials | Build established: Mutant 454 | -10/Materials | Discovered new exit (range 15) 589 | -10/Materials | Discovered new exit (range 6) 728 | -10/Materials | Discovered new exit (range 13) 1180 | -10/Materials | Discovered new exit (range 9) 1462 | -10/Materials | Learned Storage security intel 1511 | -10/Materials | Identified exit to Subcaves 1511 | -10/Materials | Identified exit to Mines 1549 | -10/Materials | Learned Storage trap positions 1663 | -10/Materials | Learned Storage emergency access door positions 1686 | -10/Materials | Entered Mines 1687 | -10/Mines | Identified exit to Materials 1697 | -10/Mines | Assisted by bots powering up and referring to "LRC-V3" 1720 | -10/Mines | Met a Derelict bent on vengeance 1966 | -10/Mines | Assembled infested the area 1971 | -10/Mines | Assisted by a Guerilla fighting off Assembled 2018 | -10/Mines | Lost 4 allies 2030 | -10/Mines | Core integrity fell below 50% 2033 | -10/Mines | Lost 5 parts (1p2n1u1w) 2092 | -10/Mines | Destroyed 10 combat bots 2280 | -10/Mines | Core integrity fell below 20% 2324 | -10/Mines | Entered Materials 2324 | -9/Materials | Evolved 2 slots: Utility x2 2773 | -9/Materials | Discovered new exit (range 7) 2938 | -9/Materials | Discovered new exit (range 10) 3586 | -9/Materials | Identified exit to Mines 3755 | -9/Materials | Central database locked down 3787 | -9/Materials | Learned 4 Recycling zone layouts 3823 | -9/Materials | Identified exit to Materials 3849 | -9/Materials | Learned 4 Recycling zone layouts 3872 | -9/Materials | Learned location of Recycling (-8) 3890 | -9/Materials | Learned Storage garrison access intel 3920 | -9/Materials | Loaded intel: 10 trap records 4090 | -9/Materials | Repaired Adv. Beam Rifle 4308 | -9/Materials | Entered Mines 4315 | -9/Mines | Received a Rocket Launcher from a helpful Derelict 4654 | -9/Mines | Discovered exit to Materials (range 5) 4832 | -9/Mines | Entered Materials 4832 | -8/Materials | Evolved 2 slots: Propulsion x1, Utility x1 4833 | -8/Materials | Identified exit to Storage 5104 | -8/Materials | Garrison activated, responded to threat 5354 | -8/Materials | Repaired Adv. Beam Rifle 5408 | -8/Materials | Repaired Lgt. Angular Momentum Engine 5547 | -8/Materials | Repaired Lgt. Treads 5789 | -8/Materials | Discovered new exit (range 13) 6018 | -8/Materials | Learned Storage trap positions 6076 | -8/Materials | Learned Factory trap positions 6114 | -8/Materials | Discovered new exit (range 10) 6126 | -8/Materials | Learned location of 1 exit from Lower Caves 6165 | -8/Materials | Learned 2 Lower Caves zone layouts 6195 | -8/Materials | Learned location of 2 exits from Factory 6215 | -8/Materials | Learned 2 Storage zone layouts 6246 | -8/Materials | Learned location of Zion (-6) 6289 | -8/Materials | Learned location of 2 exits from Factory 6341 | -8/Materials | Learned 4 Recycling zone layouts 6544 | -8/Materials | Entered Storage 6545 | -8/Storage | Identified exit to Factory 6546 | -8/Storage | Loaded intel: 22 trap records 6548 | -8/Storage | Loaded intel: 1 garrison access location 7019 | -8/Storage | Destroyed 8 combat bots 7062 | -8/Storage | Repaired Imp. Treads 7324 | -8/Storage | Found Prototype Protection 7324 | -8/Storage | Identified Lgt. Regenerative Plating 7494 | -8/Storage | Learned 4 Recycling zone layouts 7546 | -8/Storage | Learned Storage garrison access intel 7595 | -8/Storage | Discovered new exit (range 4) 7642 | -8/Storage | Learned 4 Recycling zone layouts 7652 | -8/Storage | Learned location of Extension (-5) 7671 | -8/Storage | Learned 12 Factory zone layouts 7725 | -8/Storage | Entered Recycling 7726 | -8/Recycling | Identified exit to Factory 7726 | -8/Recycling | Identified exit to Scraptown 8138 | -8/Recycling | Watched by a mysterious "MATRIX" hacker. 8465 | -8/Recycling | Scanned before Scraplab entrance 8487 | -8/Recycling | Entered Scraplab 8503 | -8/Recycling | Entered Scraptown 8503 | -8/Scraptown | Accompanied by 1 ally 8572 | -8/Scraptown | Visited SPCMW 8609 | -8/Scraptown | Heard Great Nut preacher, LISTEN AND RECITE! 8637 | -8/Scraptown | Visited UFD Registry 8637 | -8/Scraptown | Registered with UFD as "Carbonthruster" 8650 | -8/Scraptown | Visited CPS Storage 8676 | -8/Scraptown | Visited Junk Repository 8724 | -8/Scraptown | Visited TADAMA 8767 | -8/Scraptown | Discovered exit to Factory (range 11) 9245 | -8/Scraptown | Visited Abandonware Association 9297 | -8/Scraptown | Visited Junk Repository 9366 | -8/Scraptown | Visited Scrapoid Research Area 9513 | -8/Scraptown | Visited LU-1G1's Boring Crew 9529 | -8/Scraptown | Visited DA-N13 Charitable Foundation 9534 | -8/Scraptown | Found DCF Scrap (30 items) 9558 | -8/Scraptown | Visited Derelict Rescue Squad 9569 | -8/Scraptown | Visited Chapter 10 9609 | -8/Scraptown | Visited Science Testing Area 9629 | -8/Scraptown | Visited Scrap Suit Storage 9649 | -8/Scraptown | Visited Science Guys 9751 | -8/Scraptown | Met Optimus 9751 | -8/Scraptown | Accepted into 0bPrime 9804 | -8/Scraptown | Discovered exit to Factory (range 3) 9811 | -8/Scraptown | Entered Factory 9811 | -6/Factory | Accompanied by 1 ally 9811 | -6/Factory | Evolved 4 slots: Propulsion x1, Utility x3 9812 | -6/Factory | Identified exit to Factory 9812 | -6/Factory | Identified exit to Lower Caves 9814 | -6/Factory | Loaded intel: 100 trap records 9836 | -6/Factory | Build established: Hacker-Mutant 9904 | -6/Factory | Loaded intel: 8 recycling unit locations 10565 | -6/Factory | Repaired Arm. Wheel+ 10590 | -6/Factory | Repaired Nuclear Core 10635 | -6/Factory | Central database locked down 10813 | -6/Factory | Learned location of Protoforge (-3) 11004 | -6/Factory | Lost 7 parts (2n5u) 11688 | -6/Factory | Sucked down chute 11688 | -6/Factory | Entered Waste 11698 | -6/Waste | Spotted C-40 Crusher 11703 | -6/Waste | EMP discharged 11703 | -6/Waste | System corruption reached 10% 11724 | -6/Waste | Crushed by Compactor (1 part destroyed, 1 dropped) 11727 | -6/Waste | Crushed by Compactor (1 part destroyed, 1 dropped) 11771 | -6/Waste | Spotted C-40 Crusher 11781 | -6/Waste | Spotted C-40 Crusher 11786 | -6/Waste | Destroyed C-40 Crusher 11789 | -6/Waste | Spotted C-40 Crusher 11800 | -6/Waste | Crushed by Compactor (1 part destroyed, 1 dropped) 11800 | -6/Waste | Crushed by Compactor (1 part destroyed, 1 dropped) 11803 | -6/Waste | EMP discharged 11803 | -6/Waste | Crushed by Compactor (1 part destroyed, 2 dropped) 11803 | -6/Waste | Crushed by Compactor (1 part destroyed, 2 dropped) 11806 | -6/Waste | Spotted C-40 Crusher 11806 | -6/Waste | Spotted C-40 Crusher 11806 | -6/Waste | Crushed by Compactor (1 part destroyed, 1 dropped) 11806 | -6/Waste | Self-destructed Last Messages --------------- 11800_ Adv. Treads crushed. 11800_ Hvy. Plasma Cannon crushed. 11800_ Arm. Wheel+ destroyed. 11803_ System corrupted (+10). 11803_ Adv. Sensor Array crushed. 11803_ Lrg. Storage Unit crushed. 11803_ Imp. Deuterium Engine crushed. 11803_ Plasma Rifle+ crushed. 11803_ Imp. Deuterium Engine crushed. 11803_ Missile Launcher crushed. 11803_ Adv. Treads crushed. 11803_ Adv. Heat Sink crushed. 11803_ Adv. Terrain Scanner crushed. 11803_ Hacking Suite crushed. 11806_ Corrupted Authchip [Processor] crushed. 11806_ Gravmag System crushed. 11806_ Plasma Cannon crushed. 11806_ Adv. Signal Interpreter crushed. 11806_ System Shield crushed. 11806_ Adv. Terrain Scanner crushed. Map ----- +----------------------------------------------------+ | ?????????????????????????????????????????????????? | | ?????????????????????????????????????????????????? | | ?????????????????????????????????????????????????? | | ?????????????????????????????????????????????????? | | ?????????????????????????????????????????????????? | | ?????????????????????????????????????????????????? | | ?????????????????????????????????????????????????? | | ?????????????????????????????????????????????????? | | ?????????????????????????????????????????????????? | | ?????????????????????????????????????????????????? | | ?????????????????????????????????????????????????? | | ?????????? ????????? ?????????????????????????? | | ???????? ???????# #????????????????????????? | | ?????### ????#### ###??????????????????????? | | ??#??# ????? ??????????????????????? | | ????## ????? ??????????????????????? | | ?????? ?????? ???????????????????????? | | ??????? ??????? ????????????????????????? | | ???????# ???????# #????????????????????????? | | ???????# #??????# #????????????????????????? | | ????#?## ##?????# #?????????? #????????????? | | ???????# #??????# #???????? #????????????? | | ?????### ######## ######## ####?????????? | | ????## ????????? | | ????## CC/! ????????? | | ?????# !CC@CC ????????? | | ?????# !]]CC ????????? | | ?????### ######## [######## ##???????????? | | ######?# #??????# #???????????#????????????? | | #??# #??#???# #????????????????????????? | | #??# #?#????# #????????????????????????? | | #### ######## #????????????????????????? | | CC #????????????????????????? | | % CC #????????????????????????? | | ! CC #????????????????????????? | | #????????????????????????? | | #### ######"# #????????????????????????? | | #??# #??#?### #????????????????????????? | | #??# #??????# #????????????????????????? | | #####??# #??????# #????????????????????????? | | ???????# #??????# #????????????????????????? | | ???????######??????? ?????????????????????????? | | ???????#????????##???????????????????????????????? | | ????????????#??#?????????????????????????????????? | | ?????????????????????????????????????????????????? | | ?????????????????????????????????????????????????? | | ?????????#?#?????????????????????????????????????? | | ??#??????????????????????????????????????????????? | | ?#??????#????#???????????????????????????????????? | | ??????#??????????????????????????????????????????? | +----------------------------------------------------+ Best States ------------- Heat Dissipation 83 Energy Generation 18 Energy Capacity 290 Matter Stores 300 Matter Capacity 300 Sight Range 16 Robot Scan Range 16 Terrain Scan Range 20 Terrain Scan Density 10 Power Amplification 20 Armor Coverage 600 Evasion (%) 55 Recoil Reduction 3 Particle Charging 20 Offensive Hacking 20 Defensive Hacking 10 Authchip Count 1 Item Schematics ----------------- Plasma Cutter | -9/Materials | Scanalyzed Lyr. Medium Armor Plating | -8/Recycling | Hacked Seismic Detector | -8/Recycling | Hacked Robot Schematics ------------------ None Fabricated ------------ Nothing Repaired ---------- Adv. Beam Rifle | 30% | -9/Materials Adv. Beam Rifle | 8% | -8/Materials Lgt. Angular Momentum Engine | 6% | -8/Materials Lgt. Treads | 9% | -8/Materials Imp. Treads | 16% | -8/Storage Arm. Wheel | 4% | -6/Factory Nuclear Core | 17% | -6/Factory Studied --------- Lgt. Treads | -8/Materials | Hacked Hvy. Particle Cannon | -8/Materials | Hacked Arm. Wheel | -8/Materials | Hacked Plasma Rifle | -6/Factory | Hacked Alien Tech Used ----------------- None Achievements -------------- Deductive Reasoning Challenges ------------ None Game ------ Seed AlloyMassStabilizer Manual? 0 Play Time 01:24:13 Cumulative 379.9 hours Start 2026.03.31 @ 22:22:36 End 2026.04.01 @ 00:40:09 Sessions 3 Manual Loads 0 Difficulty Rogue Special Mode None Game No. 312 Rogue 276 Adventurer 36 Explorer 0 Win Type - Total 5 Types 2/0/0/1/0/0/0/2/0/0 Lore% 71 Gallery% 66 Achievement% 54 Wizard Run 0 Options --------- Layout 1 ASCII 0 Keyboard 0 Movement Numpad Keybinds 0 Fullscreen 1 Font 48/Smallcaps Map View 50x35 Zoom Use 0% Tactical HUD 1 Map Filters NONE Filters NONE Steam 1 RUN: 4f432dd3-f250-432b-a216-244a78c143c2